Workbook

Sheet Form Responses
A1: Are you a student or faculty? | B1: What demographics do you fall under? | C1: What are the make, model, and year of your vehicle? | D1: Advertised MPG | E1: During regular school session, about how many miles do you drive in a given week? | F1: How often do you use the Shuttle Service | G1: Is Undergrad | H1: Is Grad | I1: Is Faculty | J1: Is Commuter | K1: Commuter Miles | L1: Has Car On Campus | M1: On Campus Miles | N1: Lives On Campus | O1: Gallons Per Week | P1: Is student | R1: Undergrad Gallons | S1: Grad Gallons | T1: Faculty Gallons | U1: Gallons Per Week
A2: 2s | B2: I live on campus but don't have a car | G2: =NOT(OR(A2="f", A2="gs"))*1 -> 1 | H2: =(A2="gs")*1 -> 0 | I2: =(A2="f")*1 -> 0 | J2: =(B2="I commute")*1 -> 0 | K2: =J2*E2 -> 0 | L2: =(B2="I live on campus and have a car")*1 -> 0 | M2: =L2*E2 -> 0 | N2: =OR(L2, B2="I live on campus but don't have a car")*1 -> 1 | O2: =IF(OR(J2:L2), E2/D2, 0) -> 0 | P2: =NOT(A2="f")*1 -> 1 | R2: =IF(D2>0,G2*E2/D2,0) -> 0 | S2: =IF(D2>0,H2*E2/D2,0) -> 0 | T2: =IF(D2>0,I2*E2/D2,0) -> 0 | U2: =IF(D2>0,E2/D2,0) -> 0
A3: 2s | B3: I live on campus but don't have a car | G3: =NOT(OR(A3="f", A3="gs"))*1 -> 1 | H3: =(A3="gs")*1 -> 0 | I3: =(A3="f")*1 -> 0 | J3: =(B3="I commute")*1 -> 0 | K3: =J3*E3 -> 0 | L3: =(B3="I live on campus and have a car")*1 -> 0 | M3: =L3*E3 -> 0 | N3: =OR(L3, B3="I live on campus but don't have a car")*1 -> 1 | O3: =IF(OR(J3:L3), E3/D3, 0) -> 0 | P3: =NOT(A3="f")*1 -> 1 | R3: =IF(D3>0,G3*E3/D3,0) -> 0 | S3: =IF(D3>0,H3*E3/D3,0) -> 0 | T3: =IF(D3>0,I3*E3/D3,0) -> 0 | U3: =IF(D3>0,E3/D3,0) -> 0
A4: 1s | B4: I live on campus but don't have a car | G4: 1 | H4: 0 | I4: 0 | J4: 0 | K4: 0 | L4: 0 | M4: 0 | N4: =OR(L4, B4="I live on campus but don't have a car")*1 -> 1 | O4: 0 | P4: 1 | R4: 0 | S4: 0 | T4: 0 | U4: 0
A5: f | B5: I commute | C5: 2006 Toyota Camry | D5: 24 | E5: 500 | G5: 0 | H5: 0 | I5: 1 | J5: 1 | K5: 500 | L5: 0 | M5: 0 | N5: =OR(L5, B5="I live on campus but don't have a car")*1 -> 0 | O5: 20.83333333 | P5: 0 | R5: 0 | S5: 0 | T5: 20.83333333 | U5: 20.83333333
A6: 1s | B6: I live on campus but don't have a car | G6: 1 | H6: 0 | I6: 0 | J6: 0 | K6: 0 | L6: 0 | M6: 0 | N6: =OR(L6, B6="I live on campus but don't have a car")*1 -> 1 | O6: 0 | P6: 1 | R6: 0 | S6: 0 | T6: 0 | U6: 0
A7: 2s | B7: I live on campus and have a car | C7: 2011 Mercedes C300 | D7: 20 | E7: 100 | G7: 1 | H7: 0 | I7: 0 | J7: 0 | K7: 0 | L7: 1 | M7: 100 | N7: =OR(L7, B7="I live on campus but don't have a car")*1 -> 1 | O7: 5 | P7: 1 | R7: 5 | S7: 0 | T7: 0 | U7: 5
A8: 2s | B8: I live on campus but don't have a car | G8: 1 | H8: 0 | I8: 0 | J8: 0 | K8: 0 | L8: 0 | M8: 0 | N8: =OR(L8, B8="I live on campus but don't have a car")*1 -> 1 | O8: 0 | P8: 1 | R8: 0 | S8: 0 | T8: 0 | U8: 0
A9: 2s | B9: I commute | C9: 2003 Honda Civic | D9: 32 | E9: 270 | G9: 1 | H9: 0 | I9: 0 | J9: 1 | K9: 270 | L9: 0 | M9: 0 | N9: =OR(L9, B9="I live on campus but don't have a car")*1 -> 0 | O9: 8.4375 | P9: 1 | R9: 8.4375 | S9: 0 | T9: 0 | U9: 8.4375
A10: 2s | B10: I live on campus but don't have a car | G10: 1 | H10: 0 | I10: 0 | J10: 0 | K10: 0 | L10: 0 | M10: 0 | N10: =OR(L10, B10="I live on campus but don't have a car")*1 -> 1 | O10: 0 | P10: 1 | R10: 0 | S10: 0 | T10: 0 | U10: 0
A11: 2s | B11: I live on campus and have a car | C11: 2004 Toyota Yaris | D11: 52 | E11: 20 | G11: 1 | H11: 0 | I11: 0 | J11: 0 | K11: 0 | L11: 1 | M11: 20 | N11: =OR(L11, B11="I live on campus but don't have a car")*1 -> 1 | O11: 0.3846153846 | P11: 1 | R11: 0.3846153846 | S11: 0 | T11: 0 | U11: 0.3846153846
A12: 2s | B12: I live on campus but don't have a car | G12: 1 | H12: 0 | I12: 0 | J12: 0 | K12: 0 | L12: 0 | M12: 0 | N12: =OR(L12, B12="I live on campus but don't have a car")*1 -> 1 | O12: 0 | P12: 1 | R12: 0 | S12: 0 | T12: 0 | U12: 0
A13: 2s | B13: I live on campus but don't have a car | G13: 1 | H13: 0 | I13: 0 | J13: 0 | K13: 0 | L13: 0 | M13: 0 | N13: =OR(L13, B13="I live on campus but don't have a car")*1 -> 1 | O13: 0 | P13: 1 | R13: 0 | S13: 0 | T13: 0 | U13: 0
A14: 2s | B14: I live on campus and have a car | C14: 2011 Ford Fusion | D14: 19 | E14: 25 | G14: 1 | H14: 0 | I14: 0 | J14: 0 | K14: 0 | L14: 1 | M14: 25 | N14: =OR(L14, B14="I live on campus but don't have a car")*1 -> 1 | O14: 1.315789474 | P14: 1 | R14: 1.315789474 | S14: 0 | T14: 0 | U14: 1.315789474
A15: 2s | B15: I live on campus but don't have a car | F15: Almost never | G15: 1 | H15: 0 | I15: 0 | J15: 0 | K15: 0 | L15: 0 | M15: 0 | N15: =OR(L15, B15="I live on campus but don't have a car")*1 -> 1 | O15: 0 | P15: 1 | Q15: =(F15="Almost never")*P15 -> 1 | R15: 0 | S15: 0 | T15: 0 | U15: 0
A16: 2s | B16: I commute | C16: 2007 Nissan Maxima | D16: 21 | E16: 20 | F16: Many times per week | G16: 1 | H16: 0 | I16: 0 | J16: 1 | K16: 20 | L16: 0 | M16: 0 | N16: =OR(L16, B16="I live on campus but don't have a car")*1 -> 0 | O16: 0.9523809524 | P16: 1 | Q16: =(F16="Almost never")*P16 -> 0 | R16: 0.9523809524 | S16: 0 | T16: 0 | U16: 0.9523809524
A17: 2s | B17: I live on campus but don't have a car | F17: Almost Never | G17: 1 | H17: 0 | I17: 0 | J17: 0 | K17: 0 | L17: 0 | M17: 0 | N17: =OR(L17, B17="I live on campus but don't have a car")*1 -> 1 | O17: 0 | P17: 1 | Q17: 1 | R17: 0 | S17: 0 | T17: 0 | U17: 0
A18: 2s | B18: I live on campus but don't have a car | F18: Almost Never | G18: 1 | H18: 0 | I18: 0 | J18: 0 | K18: 0 | L18: 0 | M18: 0 | N18: =OR(L18, B18="I live on campus but don't have a car")*1 -> 1 | O18: 0 | P18: 1 | Q18: 1 | R18: 0 | S18: 0 | T18: 0 | U18: 0
A19: 2s | B19: I live on campus but don't have a car | F19: Almost Never | G19: 1 | H19: 0 | I19: 0 | J19: 0 | K19: 0 | L19: 0 | M19: 0 | N19: =OR(L19, B19="I live on campus but don't have a car")*1 -> 1 | O19: 0 | P19: 1 | Q19: 1 | R19: 0 | S19: 0 | T19: 0 | U19: 0
A20: f | B20: I commute | C20: 2005 Ford Explorer | D20: 15 | E20: 400 | F20: Almost Never | G20: 0 | H20: 0 | I20: 1 | J20: 1 | K20: 400 | L20: 0 | M20: 0 | N20: =OR(L20, B20="I live on campus but don't have a car")*1 -> 0 | O20: 26.66666667 | P20: 0 | Q20: 0 | R20: 0 | S20: 0 | T20: 26.66666667 | U20: 26.66666667
A21: f | B21: I commute | C21: 2019 Honda FIT | D21: 36 | E21: 30 | F21: Almost Never | G21: 0 | H21: 0 | I21: 1 | J21: 1 | K21: 30 | L21: 0 | M21: 0 | N21: =OR(L21, B21="I live on campus but don't have a car")*1 -> 0 | O21: 0.8333333333 | P21: 0 | Q21: 0 | R21: 0 | S21: 0 | T21: 0.8333333333 | U21: 0.8333333333
A22: f | B22: I commute | C22: 2021 Nissan Rogue | D22: 28 | E22: 120 | F22: Almost Never | G22: 0 | H22: 0 | I22: 1 | J22: 1 | K22: 120 | L22: 0 | M22: 0 | N22: =OR(L22, B22="I live on campus but don't have a car")*1 -> 0 | O22: 4.285714286 | P22: 0 | Q22: 0 | R22: 0 | S22: 0 | T22: 4.285714286 | U22: 4.285714286
A23: f | B23: I commute | C23: 2016 Honda Pilot | D23: 22 | E23: 350 | F23: Almost Never | G23: 0 | H23: 0 | I23: 1 | J23: 1 | K23: 350 | L23: 0 | M23: 0 | N23: =OR(L23, B23="I live on campus but don't have a car")*1 -> 0 | O23: 15.90909091 | P23: 0 | Q23: 0 | R23: 0 | S23: 0 | T23: 15.90909091 | U23: 15.90909091
A24: 3s | B24: I commute | C24: 1998 Honda Accord | D24: 24 | E24: 230 | F24: Almost Never | G24: 1 | H24: 0 | I24: 0 | J24: 1 | K24: 230 | L24: 0 | M24: 0 | N24: =OR(L24, B24="I live on campus but don't have a car")*1 -> 0 | O24: 9.583333333 | P24: 1 | Q24: 1 | R24: 9.583333333 | S24: 0 | T24: 0 | U24: 9.583333333
A25: f | B25: I commute | C25: 2009 Toyota Camry | D25: 34 | E25: 75 | F25: Almost Never | G25: 0 | H25: 0 | I25: 1 | J25: 1 | K25: 75 | L25: 0 | M25: 0 | N25: =OR(L25, B25="I live on campus but don't have a car")*1 -> 0 | O25: 2.205882353 | P25: 0 | Q25: 0 | R25: 0 | S25: 0 | T25: 2.205882353 | U25: 2.205882353
A26: 1s | B26: I live on campus but don't have a car | F26: Almost Never | G26: 1 | H26: 0 | I26: 0 | J26: 0 | K26: 0 | L26: 0 | M26: 0 | N26: =OR(L26, B26="I live on campus but don't have a car")*1 -> 1 | O26: 0 | P26: 1 | Q26: 1 | R26: 0 | S26: 0 | T26: 0 | U26: 0
A27: f | B27: I commute | C27: 2019 Chevy Silverado | D27: 17 | E27: 100 | F27: Almost Never | G27: 0 | H27: 0 | I27: 1 | J27: 1 | K27: 100 | L27: 0 | M27: 0 | N27: =OR(L27, B27="I live on campus but don't have a car")*1 -> 0 | O27: 5.882352941 | P27: 0 | Q27: 0 | R27: 0 | S27: 0 | T27: 5.882352941 | U27: 5.882352941
A28: 3s | B28: I commute | C28: 2016 Honda Accord | D28: 30 | E28: 45 | F28: Many times per week | G28: 1 | H28: 0 | I28: 0 | J28: 1 | K28: 45 | L28: 0 | M28: 0 | N28: =OR(L28, B28="I live on campus but don't have a car")*1 -> 0 | O28: 1.5 | P28: 1 | Q28: 0 | R28: 1.5 | S28: 0 | T28: 0 | U28: 1.5
A29: 1s | B29: I commute | C29: 2004 Volkswagen Jetta | D29: 36 | E29: 200 | F29: Almost Never | G29: 1 | H29: 0 | I29: 0 | J29: 1 | K29: 200 | L29: 0 | M29: 0 | N29: =OR(L29, B29="I live on campus but don't have a car")*1 -> 0 | O29: 5.555555556 | P29: 1 | Q29: 1 | R29: 5.555555556 | S29: 0 | T29: 0 | U29: 5.555555556
A30: f | B30: I commute | C30: 2023 Jeep Wrangler | D30: 49 | E30: 100 | F30: Almost Never | G30: 0 | H30: 0 | I30: 1 | J30: 1 | K30: 100 | L30: 0 | M30: 0 | N30: =OR(L30, B30="I live on campus but don't have a car")*1 -> 0 | O30: 2.040816327 | P30: 0 | Q30: 0 | R30: 0 | S30: 0 | T30: 2.040816327 | U30: 2.040816327
A31: gs | B31: I commute | C31: 2016 Hyaundai Elantra | D31: 30 | E31: 250 | F31: Almost Never | G31: 0 | H31: 1 | I31: 0 | J31: 1 | K31: 250 | L31: 0 | M31: 0 | N31: =OR(L31, B31="I live on campus but don't have a car")*1 -> 0 | O31: 8.333333333 | P31: 1 | Q31: 1 | R31: 0 | S31: 8.333333333 | T31: 0 | U31: 8.333333333
A32: gs | B32: I commute | C32: 2003 Toyota Sienna | D32: 19 | E32: 40 | F32: Many times per week | G32: 0 | H32: 1 | I32: 0 | J32: 1 | K32: 40 | L32: 0 | M32: 0 | N32: =OR(L32, B32="I live on campus but don't have a car")*1 -> 0 | O32: 2.105263158 | P32: 1 | Q32: 0 | R32: 0 | S32: 2.105263158 | T32: 0 | U32: 2.105263158
A33: 3s | B33: I live on campus but don't have a car | F33: Once or Twice per Month | G33: 1 | H33: 0 | I33: 0 | J33: 0 | K33: 0 | L33: 0 | M33: 0 | N33: =OR(L33, B33="I live on campus but don't have a car")*1 -> 1 | O33: 0 | P33: 1 | Q33: 0 | R33: 0 | S33: 0 | T33: 0 | U33: 0
A34: 2s | B34: I live on campus but don't have a car | F34: Almost Never | G34: 1 | H34: 0 | I34: 0 | J34: 0 | K34: 0 | L34: 0 | M34: 0 | N34: =OR(L34, B34="I live on campus but don't have a car")*1 -> 1 | O34: 0 | P34: 1 | Q34: 1 | R34: 0 | S34: 0 | T34: 0 | U34: 0
A35: 4s | B35: I commute | C35: 2003 Honda Element | D35: 20 | E35: 130 | F35: Almost Never | G35: 1 | H35: 0 | I35: 0 | J35: 1 | K35: 130 | L35: 0 | M35: 0 | N35: =OR(L35, B35="I live on campus but don't have a car")*1 -> 0 | O35: 6.5 | P35: 1 | Q35: 1 | R35: 6.5 | S35: 0 | T35: 0 | U35: 6.5
A36: 4s | B36: I commute | C36: 2011 Ford Crown Victoria | D36: 19 | E36: 60 | F36: Almost Never | G36: 1 | H36: 0 | I36: 0 | J36: 1 | K36: 60 | L36: 0 | M36: 0 | N36: =OR(L36, B36="I live on campus but don't have a car")*1 -> 0 | O36: 3.157894737 | P36: 1 | Q36: 1 | R36: 3.157894737 | S36: 0 | T36: 0 | U36: 3.157894737
A37: 1s | B37: I commute | C37: 2012 Toyota Camry XLE | D37: 39 | E37: 250 | F37: Almost Never | G37: 1 | H37: 0 | I37: 0 | J37: 1 | K37: 250 | L37: 0 | M37: 0 | N37: =OR(L37, B37="I live on campus but don't have a car")*1 -> 0 | O37: 6.41025641 | P37: 1 | Q37: 1 | R37: 6.41025641 | S37: 0 | T37: 0 | U37: 6.41025641
A38: f | B38: I commute | C38: 2020 Jeep Cherokee | D38: 24 | E38: 100 | F38: Almost Never | G38: 0 | H38: 0 | I38: 1 | J38: 1 | K38: 100 | L38: 0 | M38: 0 | N38: =OR(L38, B38="I live on campus but don't have a car")*1 -> 0 | O38: 4.166666667 | P38: 0 | Q38: 0 | R38: 0 | S38: 0 | T38: 4.166666667 | U38: 4.166666667
A39: 4s | B39: I commute | C39: 2006 Volvo s40 | D39: 21 | E39: 5 | F39: Almost Never | G39: 1 | H39: 0 | I39: 0 | J39: 1 | K39: 5 | L39: 0 | M39: 0 | N39: =OR(L39, B39="I live on campus but don't have a car")*1 -> 0 | O39: 0.2380952381 | P39: 1 | Q39: 1 | R39: 0.2380952381 | S39: 0 | T39: 0 | U39: 0.2380952381
A40: 3s | B40: I commute | C40: 2004 Chevy Impala | D40: 22 | E40: 150 | F40: Almost Never | G40: 1 | H40: 0 | I40: 0 | J40: 1 | K40: 150 | L40: 0 | M40: 0 | N40: =OR(L40, B40="I live on campus but don't have a car")*1 -> 0 | O40: 6.818181818 | P40: 1 | Q40: 1 | R40: 6.818181818 | S40: 0 | T40: 0 | U40: 6.818181818
A41: gs | B41: I commute | C41: 2004 Jeep Grand Cherokee | D41: 16 | E41: 60 | F41: Almost Never | G41: 0 | H41: 1 | I41: 0 | J41: 1 | K41: 60 | L41: 0 | M41: 0 | N41: =OR(L41, B41="I live on campus but don't have a car")*1 -> 0 | O41: 3.75 | P41: 1 | Q41: 1 | R41: 0 | S41: 3.75 | T41: 0 | U41: 3.75
A42: f | B42: I commute | C42: 2011 Toyota Corolla | D42: 30 | E42: 160 | F42: Almost Never | G42: 0 | H42: 0 | I42: 1 | J42: 1 | K42: 160 | L42: 0 | M42: 0 | N42: =OR(L42, B42="I live on campus but don't have a car")*1 -> 0 | O42: 5.333333333 | P42: 0 | Q42: 0 | R42: 0 | S42: 0 | T42: 5.333333333 | U42: 5.333333333
A43: 4s | B43: I commute | C43: 2013 Subaru Impreza | D43: 30 | E43: 300 | F43: Almost Never | G43: 1 | H43: 0 | I43: 0 | J43: 1 | K43: 300 | L43: 0 | M43: 0 | N43: =OR(L43, B43="I live on campus but don't have a car")*1 -> 0 | O43: 10 | P43: 1 | Q43: 1 | R43: 10 | S43: 0 | T43: 0 | U43: 10
A44: gs | B44: I commute | C44: 2017 Toyota RAV4 | D44: 25 | E44: 120 | F44: Almost Never | G44: 0 | H44: 1 | I44: 0 | J44: 1 | K44: 120 | L44: 0 | M44: 0 | N44: =OR(L44, B44="I live on campus but don't have a car")*1 -> 0 | O44: 4.8 | P44: 1 | Q44: 1 | R44: 0 | S44: 4.8 | T44: 0 | U44: 4.8
A45: 3s | B45: I commute | C45: 2016 Honda civic | D45: 35 | E45: 220 | F45: Almost Never | G45: 1 | H45: 0 | I45: 0 | J45: 1 | K45: 220 | L45: 0 | M45: 0 | N45: =OR(L45, B45="I live on campus but don't have a car")*1 -> 0 | O45: 6.285714286 | P45: 1 | Q45: 1 | R45: 6.285714286 | S45: 0 | T45: 0 | U45: 6.285714286
A46: f | B46: I commute | C46: 2017 Nissan Altima | D46: 31 | E46: 200 | F46: Almost Never | G46: 0 | H46: 0 | I46: 1 | J46: 1 | K46: 200 | L46: 0 | M46: 0 | N46: =OR(L46, B46="I live on campus but don't have a car")*1 -> 0 | O46: 6.451612903 | P46: 0 | Q46: 0 | R46: 0 | S46: 0 | T46: 6.451612903 | U46: 6.451612903
A47: 1s | B47: I commute | C47: 1995 Toyota Avalon | D47: 21 | E47: 135 | F47: Almost Never | G47: 1 | H47: 0 | I47: 0 | J47: 1 | K47: 135 | L47: 0 | M47: 0 | N47: =OR(L47, B47="I live on campus but don't have a car")*1 -> 0 | O47: 6.428571429 | P47: 1 | Q47: 1 | R47: 6.428571429 | S47: 0 | T47: 0 | U47: 6.428571429
A48: f | B48: I commute | C48: 2017 Kia Sorento | D48: 24 | E48: 195 | F48: Almost Never | G48: 0 | H48: 0 | I48: 1 | J48: 1 | K48: 195 | L48: 0 | M48: 0 | N48: =OR(L48, B48="I live on campus but don't have a car")*1 -> 0 | O48: 8.125 | P48: 0 | Q48: 0 | R48: 0 | S48: 0 | T48: 8.125 | U48: 8.125
A49: gs | B49: I commute | C49: 2007 Toyota Camry | D49: 25 | E49: 30 | F49: Almost Never | G49: 0 | H49: 1 | I49: 0 | J49: 1 | K49: 30 | L49: 0 | M49: 0 | N49: =OR(L49, B49="I live on campus but don't have a car")*1 -> 0 | O49: 1.2 | P49: 1 | Q49: 1 | R49: 0 | S49: 1.2 | T49: 0 | U49: 1.2
A50: 4s | B50: I commute | C50: 2016 Kia Forte | D50: 30 | E50: 162 | F50: Almost Never | G50: 1 | H50: 0 | I50: 0 | J50: 1 | K50: 162 | L50: 0 | M50: 0 | N50: =OR(L50, B50="I live on campus but don't have a car")*1 -> 0 | O50: 5.4 | P50: 1 | Q50: 1 | R50: 5.4 | S50: 0 | T50: 0 | U50: 5.4
A51: 1s | B51: I commute | C51: 2013 Dodge Avenger sxt | D51: 23 | E51: 90 | F51: Almost Never | G51: 1 | H51: 0 | I51: 0 | J51: 1 | K51: 90 | L51: 0 | M51: 0 | N51: =OR(L51, B51="I live on campus but don't have a car")*1 -> 0 | O51: 3.913043478 | P51: 1 | Q51: 1 | R51: 3.913043478 | S51: 0 | T51: 0 | U51: 3.913043478
A52: 2s | B52: I commute | C52: 2006 Mercedes Benz S350 | D52: 18 | E52: 56 | F52: Once or Twice per Semester | G52: 1 | H52: 0 | I52: 0 | J52: 1 | K52: 56 | L52: 0 | M52: 0 | N52: =OR(L52, B52="I live on campus but don't have a car")*1 -> 0 | O52: 3.111111111 | P52: 1 | Q52: 0 | R52: 3.111111111 | S52: 0 | T52: 0 | U52: 3.111111111
A53: f | B53: I commute | C53: 2014 Honda Pilot | D53: 20 | E53: 35 | F53: Almost Never | G53: 0 | H53: 0 | I53: 1 | J53: 1 | K53: 35 | L53: 0 | M53: 0 | N53: =OR(L53, B53="I live on campus but don't have a car")*1 -> 0 | O53: 1.75 | P53: 0 | Q53: 0 | R53: 0 | S53: 0 | T53: 1.75 | U53: 1.75
A54: 3s | B54: I commute | C54: 2018 Chevrolet Camaro SS | D54: 25 | E54: 80 | F54: Almost Never | G54: 1 | H54: 0 | I54: 0 | J54: 1 | K54: 80 | L54: 0 | M54: 0 | N54: =OR(L54, B54="I live on campus but don't have a car")*1 -> 0 | O54: 3.2 | P54: 1 | Q54: 1 | R54: 3.2 | S54: 0 | T54: 0 | U54: 3.2
A55: 2s | B55: I commute | C55: 2004 Honda Pilot | D55: 17 | E55: 100 | F55: Almost Never | G55: 1 | H55: 0 | I55: 0 | J55: 1 | K55: 100 | L55: 0 | M55: 0 | N55: =OR(L55, B55="I live on campus but don't have a car")*1 -> 0 | O55: 5.882352941 | P55: 1 | Q55: 1 | R55: 5.882352941 | S55: 0 | T55: 0 | U55: 5.882352941
A56: gs | B56: I commute | C56: 2016 Ford Edge AWD | D56: 23 | E56: 200 | F56: Almost Never | G56: 0 | H56: 1 | I56: 0 | J56: 1 | K56: 200 | L56: 0 | M56: 0 | N56: =OR(L56, B56="I live on campus but don't have a car")*1 -> 0 | O56: 8.695652174 | P56: 1 | Q56: 1 | R56: 0 | S56: 8.695652174 | T56: 0 | U56: 8.695652174
A57: 2s | B57: I live on campus but don't have a car | F57: Every week | G57: 1 | H57: 0 | I57: 0 | J57: 0 | K57: 0 | L57: 0 | M57: 0 | N57: =OR(L57, B57="I live on campus but don't have a car")*1 -> 1 | O57: 0 | P57: 1 | Q57: 0 | R57: 0 | S57: 0 | T57: 0 | U57: 0
A58: gs | B58: I commute | C58: 2014 Chevy Impala | D58: 24 | E58: 100 | F58: Almost Never | G58: 0 | H58: 1 | I58: 0 | J58: 1 | K58: 100 | L58: 0 | M58: 0 | N58: =OR(L58, B58="I live on campus but don't have a car")*1 -> 0 | O58: 4.166666667 | P58: 1 | Q58: 1 | R58: 0 | S58: 4.166666667 | T58: 0 | U58: 4.166666667
A59: 2s | B59: I live on campus but don't have a car | F59: Almost Never | G59: 1 | H59: 0 | I59: 0 | J59: 0 | K59: 0 | L59: 0 | M59: 0 | N59: =OR(L59, B59="I live on campus but don't have a car")*1 -> 1 | O59: 0 | P59: 1 | Q59: 1 | R59: 0 | S59: 0 | T59: 0 | U59: 0
A60: 1s | B60: I live on campus but don't have a car | F60: Almost Never | G60: 1 | H60: 0 | I60: 0 | J60: 0 | K60: 0 | L60: 0 | M60: 0 | N60: =OR(L60, B60="I live on campus but don't have a car")*1 -> 1 | O60: 0 | P60: 1 | Q60: 1 | R60: 0 | S60: 0 | T60: 0 | U60: 0
A61: gs | B61: I commute | C61: 2017 Volkswagen GTI | D61: 28 | E61: 200 | F61: Almost Never | G61: 0 | H61: 1 | I61: 0 | J61: 1 | K61: 200 | L61: 0 | M61: 0 | N61: =OR(L61, B61="I live on campus but don't have a car")*1 -> 0 | O61: 7.142857143 | P61: 1 | Q61: 1 | R61: 0 | S61: 7.142857143 | T61: 0 | U61: 7.142857143
A62: 2s | B62: I live on campus but don't have a car | F62: Almost Never | G62: 1 | H62: 0 | I62: 0 | J62: 0 | K62: 0 | L62: 0 | M62: 0 | N62: =OR(L62, B62="I live on campus but don't have a car")*1 -> 1 | O62: 0 | P62: 1 | Q62: 1 | R62: 0 | S62: 0 | T62: 0 | U62: 0
A63: f | B63: I commute | C63: 2014 Dodge Durango | D63: 20 | E63: 50 | F63: Almost Never | G63: =NOT(OR(A63="f", A63="gs"))*1 -> 0 | H63: 0 | I63: 1 | J63: 1 | K63: 50 | L63: 0 | M63: 0 | N63: =OR(L63, B63="I live on campus but don't have a car")*1 -> 0 | O63: 2.5 | P63: 0 | Q63: 0 | R63: 0 | S63: 0 | T63: 2.5 | U63: 2.5
A64: f | B64: I commute | C64: 2013 Honda Civic | D64: 32 | E64: 100 | F64: Once or Twice per Semester | G64: 0 | H64: 0 | I64: 1 | J64: 1 | K64: 100 | L64: 0 | M64: 0 | N64: =OR(L64, B64="I live on campus but don't have a car")*1 -> 0 | O64: 3.125 | P64: 0 | Q64: 0 | R64: 0 | S64: 0 | T64: 3.125 | U64: 3.125
A65: 1s | B65: I live on campus but don't have a car | F65: Almost Never | G65: 1 | H65: 0 | I65: 0 | J65: 0 | K65: 0 | L65: 0 | M65: 0 | N65: =OR(L65, B65="I live on campus but don't have a car")*1 -> 1 | O65: 0 | P65: 1 | Q65: 1 | R65: 0 | S65: 0 | T65: 0 | U65: 0
A66: 2s | B66: I live on campus but don't have a car | F66: Almost Never | G66: 1 | H66: =(A66="gs")*1 -> 0 | I66: =(A66="f")*1 -> 0 | J66: =(B66="I commute")*1 -> 0 | K66: =J66*E66 -> 0 | L66: =(B66="I live on campus and have a car")*1 -> 0 | M66: =L66*E66 -> 0 | N66: =OR(L66, B66="I live on campus but don't have a car")*1 -> 1 | O66: =IF(OR(J66:L66), E66/D66, 0) -> 0 | P66: 1 | Q66: 1 | R66: 0 | S66: 0 | T66: 0 | U66: 0
A67: 4s | B67: I commute | C67: 2003 Mitsubishi Galant | D67: 21 | E67: 180 | F67: Almost Never | G67: 1 | H67: 0 | I67: 0 | J67: 1 | K67: 180 | L67: 0 | M67: 0 | N67: =OR(L67, B67="I live on campus but don't have a car")*1 -> 0 | O67: 8.571428571 | P67: =NOT(A67="f")*1 -> 1 | Q67: 1 | R67: =IF(D67>0,G67*E67/D67,0) -> 8.571428571 | S67: =IF(D67>0,H67*E67/D67,0) -> 0 | T67: =IF(D67>0,I67*E67/D67,0) -> 0 | U67: =IF(D67>0,E67/D67,0) -> 8.571428571
A68: f | B68: I commute | C68: 2013 Buick Verano | D68: 24 | E68: 150 | F68: Almost Never | G68: 0 | H68: 0 | I68: 1 | J68: 1 | K68: 150 | L68: 0 | M68: 0 | N68: =OR(L68, B68="I live on campus but don't have a car")*1 -> 0 | O68: 6.25 | P68: 0 | Q68: 0 | R68: 0 | S68: 0 | T68: 6.25 | U68: 6.25
A69: gs | B69: I commute | C69: 2014 Kia optima | D69: 26 | E69: 70 | F69: Almost Never | G69: 0 | H69: 1 | I69: 0 | J69: 1 | K69: 70 | L69: 0 | M69: 0 | N69: =OR(L69, B69="I live on campus but don't have a car")*1 -> 0 | O69: 2.692307692 | P69: 1 | Q69: 1 | R69: 0 | S69: 2.692307692 | T69: 0 | U69: 2.692307692
A70: gs | B70: I commute | C70: 2017 Hyundai Tucson SE | D70: 28 | E70: 150 | F70: Almost Never | G70: 0 | H70: 1 | I70: 0 | J70: 1 | K70: 150 | L70: 0 | M70: 0 | N70: =OR(L70, B70="I live on campus but don't have a car")*1 -> 0 | O70: 5.357142857 | P70: 1 | Q70: 1 | R70: 0 | S70: 5.357142857 | T70: 0 | U70: 5.357142857
A71: 2s | B71: I live on campus and have a car | C71: 2016 Jeep Compass 4x4 | D71: 24 | E71: 25 | F71: Almost Never | G71: 1 | H71: 0 | I71: 0 | J71: 0 | K71: 0 | L71: 1 | M71: 25 | N71: =OR(L71, B71="I live on campus but don't have a car")*1 -> 1 | O71: 1.041666667 | P71: 1 | Q71: 1 | R71: 1.041666667 | S71: 0 | T71: 0 | U71: 1.041666667
A72: f | B72: I commute | C72: 2022 Toyota Prius Prime | D72: 133 | E72: 200 | F72: Almost Never | G72: 0 | H72: 0 | I72: 1 | J72: 1 | K72: 200 | L72: 0 | M72: 0 | N72: =OR(L72, B72="I live on campus but don't have a car")*1 -> 0 | O72: 1.503759398 | P72: 0 | Q72: 0 | R72: 0 | S72: 0 | T72: 1.503759398 | U72: 1.503759398
A73: 3s | B73: I commute | C73: 2012 Ford Focus | D73: 31 | E73: 540 | F73: Almost Never | G73: 1 | H73: 0 | I73: 0 | J73: 1 | K73: 540 | L73: 0 | M73: 0 | N73: =OR(L73, B73="I live on campus but don't have a car")*1 -> 0 | O73: 17.41935484 | P73: 1 | Q73: 1 | R73: 17.41935484 | S73: 0 | T73: 0 | U73: 17.41935484
A74: gs | B74: I commute | C74: 2018 Hyundai Ioniq Plug-In Hybrid | D74: 119 | E74: 160 | F74: Once or Twice per Semester | G74: 0 | H74: 1 | I74: 0 | J74: 1 | K74: 160 | L74: 0 | M74: 0 | N74: =OR(L74, B74="I live on campus but don't have a car")*1 -> 0 | O74: 1.344537815 | P74: 1 | Q74: 0 | R74: 0 | S74: 1.344537815 | T74: 0 | U74: 1.344537815
A75: gs | B75: I commute | C75: 2010 Volvo XC60 | D75: 18 | E75: 20 | F75: Almost Never | G75: 0 | H75: 1 | I75: 0 | J75: 1 | K75: 20 | L75: 0 | M75: 0 | N75: =OR(L75, B75="I live on campus but don't have a car")*1 -> 0 | O75: 1.111111111 | P75: 1 | Q75: 1 | R75: 0 | S75: 1.111111111 | T75: 0 | U75: 1.111111111
A76: 4s | B76: I commute | C76: 2006 Acura MDX | D76: 17 | E76: 7 | F76: Almost Never | G76: 1 | H76: 0 | I76: 0 | J76: 1 | K76: 7 | L76: 0 | M76: 0 | N76: =OR(L76, B76="I live on campus but don't have a car")*1 -> 0 | O76: 0.4117647059 | P76: 1 | Q76: 1 | R76: 0.4117647059 | S76: 0 | T76: 0 | U76: 0.4117647059
A77: 4s | B77: I commute | C77: 2008 Volvo S60 | D77: 22 | E77: 8 | F77: Almost Never | G77: 1 | H77: 0 | I77: 0 | J77: 1 | K77: 8 | L77: 0 | M77: 0 | N77: =OR(L77, B77="I live on campus but don't have a car")*1 -> 0 | O77: 0.3636363636 | P77: 1 | Q77: 1 | R77: 0.3636363636 | S77: 0 | T77: 0 | U77: 0.3636363636
A78: gs | B78: I live on campus and have a car | C78: 2007 chevy malibu | D78: 25 | E78: 20 | F78: Almost Never | G78: 0 | H78: 1 | I78: 0 | J78: 0 | K78: 0 | L78: 1 | M78: 20 | N78: =OR(L78, B78="I live on campus but don't have a car")*1 -> 1 | O78: 0.8 | P78: 1 | Q78: 1 | R78: 0 | S78: 0.8 | T78: 0 | U78: 0.8
A79: 2s | B79: I live on campus but don't have a car | F79: Almost Never | G79: 1 | H79: 0 | I79: 0 | J79: 0 | K79: 0 | L79: 0 | M79: 0 | N79: =OR(L79, B79="I live on campus but don't have a car")*1 -> 1 | O79: 0 | P79: 1 | Q79: 1 | R79: 0 | S79: 0 | T79: 0 | U79: 0
A80: 4s | B80: I commute | C80: 1998 Ford F150 | D80: 15 | E80: 80 | F80: Almost Never | G80: 1 | H80: 0 | I80: 0 | J80: 1 | K80: 80 | L80: 0 | M80: 0 | N80: =OR(L80, B80="I live on campus but don't have a car")*1 -> 0 | O80: 5.333333333 | P80: 1 | Q80: =(F80="Almost never")*P80 -> 1 | R80: 5.333333333 | S80: 0 | T80: 0 | U80: 5.333333333
A81: gs | B81: I live on campus but don't have a car | F81: Once or Twice per Semester | G81: 0 | H81: 1 | I81: 0 | J81: 0 | K81: 0 | L81: 0 | M81: 0 | N81: =OR(L81, B81="I live on campus but don't have a car")*1 -> 1 | O81: 0 | P81: 1 | Q81: 0 | R81: 0 | S81: 0 | T81: 0 | U81: 0
A82: f | B82: I commute | C82: 2019 Honda Accord EX | D82: 33 | E82: 175 | F82: Almost Never | G82: 0 | H82: 0 | I82: 1 | J82: 1 | K82: 175 | L82: 0 | M82: 0 | N82: =OR(L82, B82="I live on campus but don't have a car")*1 -> 0 | O82: 5.303030303 | P82: 0 | Q82: 0 | R82: 0 | S82: 0 | T82: 5.303030303 | U82: 5.303030303
A83: 4s | B83: I commute | C83: 2006 Ford Focus | D83: 26 | E83: 100 | F83: Almost Never | G83: 1 | H83: 0 | I83: 0 | J83: 1 | K83: 100 | L83: 0 | M83: 0 | N83: =OR(L83, B83="I live on campus but don't have a car")*1 -> 0 | O83: 3.846153846 | P83: 1 | Q83: 1 | R83: 3.846153846 | S83: 0 | T83: 0 | U83: 3.846153846
A84: f | B84: I commute | C84: 2018 Toyota Prius Prime | D84: 133 | E84: 0 | F84: Almost Never | G84: 0 | H84: 0 | I84: 1 | J84: 1 | K84: 0 | L84: 0 | M84: 0 | N84: =OR(L84, B84="I live on campus but don't have a car")*1 -> 0 | O84: 0 | P84: 0 | Q84: 0 | R84: 0 | S84: 0 | T84: 0 | U84: 0
A85: 4s | B85: I commute | C85: 2009 Chevy Malibu | D85: 29 | E85: 70 | F85: Almost Never | G85: 1 | H85: 0 | I85: 0 | J85: 1 | K85: 70 | L85: 0 | M85: 0 | N85: =OR(L85, B85="I live on campus but don't have a car")*1 -> 0 | O85: 2.413793103 | P85: 1 | Q85: 1 | R85: 2.413793103 | S85: 0 | T85: 0 | U85: 2.413793103
A86: f | B86: I commute | C86: 2011 Toyota Prius | D86: 48 | E86: 200 | F86: Almost Never | G86: 0 | H86: 0 | I86: 1 | J86: 1 | K86: 200 | L86: 0 | M86: 0 | N86: =OR(L86, B86="I live on campus but don't have a car")*1 -> 0 | O86: 4.166666667 | P86: 0 | Q86: 0 | R86: 0 | S86: 0 | T86: 4.166666667 | U86: 4.166666667
A87: gs | B87: I commute | C87: 2018 Hyundai Elantra | D87: 35 | E87: 40 | F87: Almost Never | G87: 0 | H87: 1 | I87: 0 | J87: 1 | K87: 40 | L87: 0 | M87: 0 | N87: =OR(L87, B87="I live on campus but don't have a car")*1 -> 0 | O87: 1.142857143 | P87: 1 | Q87: 1 | R87: 0 | S87: 1.142857143 | T87: 0 | U87: 1.142857143
A88: f | B88: I commute | C88: 2021 Honda Civic | D88: 36 | E88: 130 | F88: Almost Never | G88: 0 | H88: 0 | I88: 1 | J88: 1 | K88: 130 | L88: 0 | M88: 0 | N88: =OR(L88, B88="I live on campus but don't have a car")*1 -> 0 | O88: 3.611111111 | P88: 0 | Q88: 0 | R88: 0 | S88: 0 | T88: 3.611111111 | U88: 3.611111111
A89: 3s | B89: I commute | C89: 2008 Volkswagon Rabbit | D89: 24 | E89: 300 | F89: Almost Never | G89: 1 | H89: 0 | I89: 0 | J89: 1 | K89: 300 | L89: 0 | M89: 0 | N89: =OR(L89, B89="I live on campus but don't have a car")*1 -> 0 | O89: 12.5 | P89: 1 | Q89: 1 | R89: 12.5 | S89: 0 | T89: 0 | U89: 12.5
A90: 1s | B90: I live on campus and have a car | C90: 2011 Subaru Forester | D90: 23 | E90: 10 | F90: Almost Never | G90: 1 | H90: 0 | I90: 0 | J90: 0 | K90: 0 | L90: 1 | M90: 10 | N90: =OR(L90, B90="I live on campus but don't have a car")*1 -> 1 | O90: 0.4347826087 | P90: 1 | Q90: 1 | R90: 0.4347826087 | S90: 0 | T90: 0 | U90: 0.4347826087
A91: f | B91: I commute | C91: 2012 Volkswagon Golf | D91: 32 | E91: 200 | F91: Once or Twice per Semester | G91: 0 | H91: 0 | I91: 1 | J91: 1 | K91: 200 | L91: 0 | M91: 0 | N91: =OR(L91, B91="I live on campus but don't have a car")*1 -> 0 | O91: 6.25 | P91: 0 | Q91: 0 | R91: 0 | S91: 0 | T91: 6.25 | U91: 6.25
A92: 2s | B92: I live on campus and have a car | C92: 2014 Toyota yaris | D92: 33 | E92: 25 | F92: Almost Never | G92: 1 | H92: 0 | I92: 0 | J92: 0 | K92: 0 | L92: 1 | M92: 25 | N92: =OR(L92, B92="I live on campus but don't have a car")*1 -> 1 | O92: 0.7575757576 | P92: 1 | Q92: 1 | R92: 0.7575757576 | S92: 0 | T92: 0 | U92: 0.7575757576
A93: 4s | B93: I commute | C93: 2016 Chevy 1500 | D93: 20 | E93: 100 | F93: Almost Never | G93: 1 | H93: 0 | I93: 0 | J93: 1 | K93: 100 | L93: 0 | M93: 0 | N93: =OR(L93, B93="I live on campus but don't have a car")*1 -> 0 | O93: 5 | P93: 1 | Q93: 1 | R93: 5 | S93: 0 | T93: 0 | U93: 5
A94: 2s | B94: I live on campus but don't have a car | F94: Almost Never | G94: 1 | H94: 0 | I94: 0 | J94: 0 | K94: 0 | L94: 0 | M94: 0 | N94: =OR(L94, B94="I live on campus but don't have a car")*1 -> 1 | O94: 0 | P94: 1 | Q94: 1 | R94: 0 | S94: 0 | T94: 0 | U94: 0
A95: 4s | B95: I live on campus and have a car | C95: 2011 Mitsubishi Lancer | D95: 28 | E95: 5 | F95: Almost Never | G95: 1 | H95: 0 | I95: 0 | J95: 0 | K95: 0 | L95: 1 | M95: 5 | N95: =OR(L95, B95="I live on campus but don't have a car")*1 -> 1 | O95: 0.1785714286 | P95: 1 | Q95: 1 | R95: 0.1785714286 | S95: 0 | T95: 0 | U95: 0.1785714286
A96: 1s | B96: I commute | C96: 2008 Mitsubishi outlander | D96: 22 | E96: 220 | F96: Almost Never | G96: 1 | H96: 0 | I96: 0 | J96: 1 | K96: 220 | L96: 0 | M96: 0 | N96: =OR(L96, B96="I live on campus but don't have a car")*1 -> 0 | O96: 10 | P96: 1 | Q96: 1 | R96: 10 | S96: 0 | T96: 0 | U96: 10
A97: 1s | B97: I live on campus but don't have a car | F97: Almost Never | G97: 1 | H97: 0 | I97: 0 | J97: 0 | K97: 0 | L97: 0 | M97: 0 | N97: =OR(L97, B97="I live on campus but don't have a car")*1 -> 1 | O97: 0 | P97: 1 | Q97: 1 | R97: 0 | S97: 0 | T97: 0 | U97: 0
A98: 2s | B98: I live on campus and have a car | C98: 2019 Honda CRV | D98: 30 | E98: 12 | F98: Almost Never | G98: 1 | H98: 0 | I98: 0 | J98: 0 | K98: 0 | L98: 1 | M98: 12 | N98: =OR(L98, B98="I live on campus but don't have a car")*1 -> 1 | O98: 0.4 | P98: 1 | Q98: 1 | R98: 0.4 | S98: 0 | T98: 0 | U98: 0.4
A99: 3s | B99: I live on campus and have a car | C99: 2012 Honda Accord | D99: 27 | E99: 45 | F99: Almost Never | G99: 1 | H99: 0 | I99: 0 | J99: 0 | K99: 0 | L99: 1 | M99: 45 | N99: =OR(L99, B99="I live on campus but don't have a car")*1 -> 1 | O99: 1.666666667 | P99: 1 | Q99: 1 | R99: 1.666666667 | S99: 0 | T99: 0 | U99: 1.666666667
A100: 2s | B100: I commute | C100: 2016 Ford Fiesta | D100: 30 | E100: 35 | F100: Almost Never | G100: 1 | H100: 0 | I100: 0 | J100: 1 | K100: 35 | L100: 0 | M100: 0 | N100: =OR(L100, B100="I live on campus but don't have a car")*1 -> 0 | O100: 1.166666667 | P100: 1 | Q100: 1 | R100: 1.166666667 | S100: 0 | T100: 0 | U100: 1.166666667
A101: 1s | B101: I live on campus but don't have a car | F101: Almost Never | G101: 1 | H101: 0 | I101: 0 | J101: 0 | K101: 0 | L101: 0 | M101: 0 | N101: =OR(L101, B101="I live on campus but don't have a car")*1 -> 1 | O101: 0 | P101: 1 | Q101: 1 | R101: 0 | S101: 0 | T101: 0 | U101: 0
A102: 4s | B102: I commute | C102: 2018 Dodge Challenger | D102: 23 | E102: 20 | F102: Almost Never | G102: 1 | H102: 0 | I102: 0 | J102: 1 | K102: 20 | L102: 0 | M102: 0 | N102: =OR(L102, B102="I live on campus but don't have a car")*1 -> 0 | O102: 0.8695652174 | P102: 1 | Q102: 1 | R102: 0.8695652174 | S102: 0 | T102: 0 | U102: 0.8695652174
A103: gs | B103: I commute | C103: 2012 Mazda 3 | D103: 28 | E103: 172 | F103: Almost Never | G103: 0 | H103: 1 | I103: 0 | J103: 1 | K103: 172 | L103: 0 | M103: 0 | N103: =OR(L103, B103="I live on campus but don't have a car")*1 -> 0 | O103: 6.142857143 | P103: 1 | Q103: 1 | R103: 0 | S103: 6.142857143 | T103: 0 | U103: 6.142857143
A104: 1s | B104: I live on campus but don't have a car | F104: Almost Never | G104: 1 | H104: 0 | I104: 0 | J104: 0 | K104: 0 | L104: 0 | M104: 0 | N104: =OR(L104, B104="I live on campus but don't have a car")*1 -> 1 | O104: 0 | P104: 1 | Q104: 1 | R104: 0 | S104: 0 | T104: 0 | U104: 0
A105: 4s | B105: I commute | C105: 2013 Toyota Corolla | D105: 29 | E105: 25 | F105: Almost Never | G105: 1 | H105: 0 | I105: 0 | J105: 1 | K105: 25 | L105: 0 | M105: 0 | N105: =OR(L105, B105="I live on campus but don't have a car")*1 -> 0 | O105: 0.8620689655 | P105: 1 | Q105: 1 | R105: 0.8620689655 | S105: 0 | T105: 0 | U105: 0.8620689655
A106: 2s | B106: I live on campus but don't have a car | F106: Almost Never | G106: 1 | H106: 0 | I106: 0 | J106: 0 | K106: 0 | L106: 0 | M106: 0 | N106: =OR(L106, B106="I live on campus but don't have a car")*1 -> 1 | O106: 0 | P106: 1 | Q106: 1 | R106: 0 | S106: 0 | T106: 0 | U106: 0
A107: 1s | B107: I commute | C107: 1997 Jeep Cherokee Sport | D107: 18 | E107: 250 | F107: Almost Never | G107: 1 | H107: 0 | I107: 0 | J107: 1 | K107: 250 | L107: 0 | M107: 0 | N107: =OR(L107, B107="I live on campus but don't have a car")*1 -> 0 | O107: 13.88888889 | P107: 1 | Q107: 1 | R107: 13.88888889 | S107: 0 | T107: 0 | U107: 13.88888889
A108: gs | B108: I commute | C108: 2023 Toyota Camry Hybrid | D108: 52 | E108: 1.2 | F108: Almost Never | G108: 0 | H108: 1 | I108: 0 | J108: 1 | K108: 1.2 | L108: 0 | M108: 0 | N108: =OR(L108, B108="I live on campus but don't have a car")*1 -> 0 | O108: 0.02307692308 | P108: 1 | Q108: 1 | R108: 0 | S108: 0.02307692308 | T108: 0 | U108: 0.02307692308
A109: gs | B109: I commute | C109: Granite peak bicycle | E109: 20 | F109: Almost Never | G109: 0 | H109: 1 | I109: 0 | J109: 1 | K109: 20 | L109: 0 | M109: 0 | N109: =OR(L109, B109="I live on campus but don't have a car")*1 -> 0 | O109: 0 | P109: 1 | Q109: 1 | R109: 0 | S109: 0 | T109: 0 | U109: 0
A110: 4s | B110: I commute | C110: 2011 Toyota Camry | D110: 26 | E110: 10 | F110: Almost Never | G110: 1 | H110: 0 | I110: 0 | J110: 1 | K110: 10 | L110: 0 | M110: 0 | N110: =OR(L110, B110="I live on campus but don't have a car")*1 -> 0 | O110: 0.3846153846 | P110: 1 | Q110: 1 | R110: 0.3846153846 | S110: 0 | T110: 0 | U110: 0.3846153846
A111: gs | B111: I commute | C111: 2006 Ford F250 | D111: 15 | E111: 250 | F111: Almost Never | G111: 0 | H111: 1 | I111: 0 | J111: 1 | K111: 250 | L111: 0 | M111: 0 | N111: =OR(L111, B111="I live on campus but don't have a car")*1 -> 0 | O111: 16.66666667 | P111: 1 | Q111: 1 | R111: 0 | S111: 16.66666667 | T111: 0 | U111: 16.66666667
A112: f | B112: I commute | C112: 2022 Subaru Crosstrek | D112: 30 | E112: 350 | F112: Almost Never | G112: 0 | H112: 0 | I112: 1 | J112: 1 | K112: 350 | L112: 0 | M112: 0 | N112: =OR(L112, B112="I live on campus but don't have a car")*1 -> 0 | O112: 11.66666667 | P112: 0 | Q112: 0 | R112: 0 | S112: 0 | T112: 11.66666667 | U112: 11.66666667
A113: 3s | B113: I commute | C113: 2018 Honda CRV | D113: 30 | E113: 280 | F113: Almost Never | G113: 1 | H113: 0 | I113: 0 | J113: 1 | K113: 280 | L113: 0 | M113: 0 | N113: =OR(L113, B113="I live on campus but don't have a car")*1 -> 0 | O113: 9.333333333 | P113: 1 | Q113: 1 | R113: 9.333333333 | S113: 0 | T113: 0 | U113: 9.333333333
A114: 4s | B114: I live on campus but don't have a car | F114: Almost Never | G114: 1 | H114: 0 | I114: 0 | J114: 0 | K114: 0 | L114: 0 | M114: 0 | N114: =OR(L114, B114="I live on campus but don't have a car")*1 -> 1 | O114: 0 | P114: 1 | Q114: 1 | R114: 0 | S114: 0 | T114: 0 | U114: 0
A115: 3s | B115: I commute | C115: 2004 Chevy Tahoe | D115: 15 | E115: 4 | F115: Almost Never | G115: 1 | H115: 0 | I115: 0 | J115: 1 | K115: 4 | L115: 0 | M115: 0 | N115: =OR(L115, B115="I live on campus but don't have a car")*1 -> 0 | O115: 0.2666666667 | P115: 1 | Q115: 1 | R115: 0.2666666667 | S115: 0 | T115: 0 | U115: 0.2666666667
A116: 2s | B116: I live on campus and have a car | C116: 2008 Honda Accord | D116: 25 | E116: 35 | F116: Almost Never | G116: 1 | H116: 0 | I116: 0 | J116: 0 | K116: 0 | L116: 1 | M116: 35 | N116: =OR(L116, B116="I live on campus but don't have a car")*1 -> 1 | O116: 1.4 | P116: 1 | Q116: 1 | R116: 1.4 | S116: 0 | T116: 0 | U116: 1.4
A117: 4s | B117: I commute | C117: 2010 Ford Fusion | D117: 19 | E117: 500 | F117: Almost Never | G117: 1 | H117: 0 | I117: 0 | J117: 1 | K117: 500 | L117: 0 | M117: 0 | N117: =OR(L117, B117="I live on campus but don't have a car")*1 -> 0 | O117: 26.31578947 | P117: 1 | Q117: 1 | R117: 26.31578947 | S117: 0 | T117: 0 | U117: 26.31578947
A118: f | B118: I commute | C118: 2015 Chevy Cruze | D118: 32 | E118: 150 | F118: Almost Never | G118: 0 | H118: 0 | I118: 1 | J118: 1 | K118: 150 | L118: 0 | M118: 0 | N118: =OR(L118, B118="I live on campus but don't have a car")*1 -> 0 | O118: 4.6875 | P118: 0 | Q118: 0 | R118: 0 | S118: 0 | T118: 4.6875 | U118: 4.6875
A119: 4s | B119: I commute | C119: 2017 Volkswagen Alltrack | D119: 26 | E119: 500 | F119: Almost Never | G119: =NOT(OR(A119="f", A119="gs"))*1 -> 1 | H119: 0 | I119: 0 | J119: 1 | K119: 500 | L119: 0 | M119: 0 | N119: =OR(L119, B119="I live on campus but don't have a car")*1 -> 0 | O119: 19.23076923 | P119: 1 | Q119: 1 | R119: 19.23076923 | S119: 0 | T119: 0 | U119: 19.23076923
A120: f | B120: I commute | C120: 2017 Acura RDX | D120: 23 | E120: 250 | F120: Almost Never | G120: 0 | H120: 0 | I120: 1 | J120: 1 | K120: 250 | L120: 0 | M120: 0 | N120: =OR(L120, B120="I live on campus but don't have a car")*1 -> 0 | O120: 10.86956522 | P120: 0 | Q120: 0 | R120: 0 | S120: 0 | T120: 10.86956522 | U120: 10.86956522
A121: 2s | B121: I live on campus but don't have a car | F121: Many times per week | G121: 1 | H121: 0 | I121: 0 | J121: 0 | K121: 0 | L121: 0 | M121: 0 | N121: =OR(L121, B121="I live on campus but don't have a car")*1 -> 1 | O121: 0 | P121: 1 | Q121: 0 | R121: 0 | S121: 0 | T121: 0 | U121: 0
A122: 2s | B122: I live on campus but don't have a car | F122: Almost Never | G122: 1 | H122: 0 | I122: 0 | J122: 0 | K122: 0 | L122: 0 | M122: 0 | N122: =OR(L122, B122="I live on campus but don't have a car")*1 -> 1 | O122: 0 | P122: 1 | Q122: 1 | R122: 0 | S122: 0 | T122: 0 | U122: 0
A123: gs | B123: I commute | C123: I don't have a car, I use an electric scooter | F123: Almost Never | G123: 0 | H123: 1 | I123: 0 | J123: 1 | K123: 0 | L123: 0 | M123: 0 | N123: =OR(L123, B123="I live on campus but don't have a car")*1 -> 0 | O123: 0 | P123: 1 | Q123: 1 | R123: 0 | S123: 0 | T123: 0 | U123: 0
A124: f | B124: I commute | C124: 2018 Toyota Tacoma | D124: 21 | E124: 250 | F124: Almost Never | G124: =NOT(OR(A124="f", A124="gs"))*1 -> 0 | H124: 0 | I124: 1 | J124: 1 | K124: 250 | L124: 0 | M124: 0 | N124: =OR(L124, B124="I live on campus but don't have a car")*1 -> 0 | O124: 11.9047619 | P124: 0 | Q124: 0 | R124: 0 | S124: 0 | T124: 11.9047619 | U124: 11.9047619
R125: =SUM(R2:R124)/B129 -> 3.170538803 | S125: =SUM(S2:S124)/B130 -> 3.773716491 | T125: =SUM(T2:T124)/B131 -> 6.781610166 | U125: =AVERAGE(U2:U124) -> 4.031932374
A127: Demographic | B127: Count
A128: Total Sampled | B128: =SUM(B129:B131) -> 123
A129: Undergrads Sampled | B129: =SUM(G2:G124) -> 77
A130: Grads Sampled | B130: =SUM(H2:H124) -> 20
A131: Staff/Faculty Sampled | B131: =SUM(I2:I124) -> 26
A135: Vehicle Statistics | B135: Calculated Value
A136: Students Using Shuttles | B136: =100*SUM(Q15:Q124)/SUM(P15:P124) -> 89.41176471
A137: Weekly Commuter Miles (Avg.) | B137: =SUM(K2:K124)/SUM(J2:J124) -> 150.4345679
A138: Weekly On Campus Driver Miles (Avg.) | B138: =SUM(M2:M124)/SUM(L2:L124) -> 29.27272727
A139: Weekly All On Campus Miles (Avg.) | B139: =SUM(M2:M124)/SUM(N2:N124) -> 7.666666667
A140: Weekly All Miles (Avg) | B140: =SUM(E2:E124)/B128 -> 101.6845528
A141: Miles Per Gallon (Avg.) | B141: =AVERAGE(D2:D124) -> 29.71111111
A142: Gallons Per Person | B142: =B140/B141 -> 3.422441943
A143: Gallons Per Person Alt Calc

Sheet Sheet2
